Cogmind - Beta 16 @@@ ROGUE MODE // 2026.02.04 @ 23:25:06 Player: verv Result: Destroyed by TG-3FA(R) with Subdweller Beam Cannon Performance ------------- Evolutions (0) 0 Regions Visited (3) 600 Robots Destroyed (32) 160 Value Destroyed (680) 680 Prototype IDs (12) 240 Alien Tech Used (0) 0 Bonus (0) 0 TOTAL SCORE: 1680 Bonus ------- None Cogmind --------- Core Integrity 0/250 Matter 244/300 Energy 200/200 System Corruption 0% Temperature Cool (9) Movement Walking (260) Ox2 Location -10/Subcaves Parts ------- > --- POWER (1) -------- Subdweller Power Source > --- PROPULSION (2) --- Improved Aluminum Leg > --- UTILITY (2) ------ Large Storage Unit > --- WEAPON (2) ------- Autogun Autogun > --- INVENTORY (15) --- Spiked Treads Huge Storage Unit High-capacity Matter Pod (200) Sensor Array Terrain Scanner Gun Armor Makeshift System Shield Makeshift System Restoration Module Riot Gun Subdweller Machine Gun Battle Cannon Datajack Enhanced Flamer Makeshift Hammer Piercing Trap Peak State ------------ > --- POWER ------------ Subdweller Power Source > --- PROPULSION ------- Improved Aluminum Leg Improved Aluminum Leg > --- UTILITY ---------- Large Storage Unit Sensor Array > --- WEAPON ----------- Autogun Autogun > --- INVENTORY -------- Spiked Treads Huge Storage Unit High-capacity Matter Pod Sensor Array Terrain Scanner Gun Armor Riot Gun Assault Rifle Subdweller Machine Gun Battle Cannon Datajack Mining Laser Mining Laser Flamer Enhanced Flamer [Rating: 15] Favorites ----------- Power Ion Engine Engine Ion Engine Propulsion Improved Aluminum Leg Treads Light Treads Leg Improved Aluminum Leg Utility Large Storage Unit Device Sensor Array Storage Large Storage Unit Processor Visual Processing Unit Weapon Autogun Energy Gun EM Pulse Gun Ballistic Gun Autogun Special Weapon Mining Laser Special Melee Weapon Datajack Build | -11 -10 -10 -10 ------- Run | Yrd Mat Min Sub Slots Evolved . | . . . . Power . | . . . . Propulsion . | . . . . Utility . | . . . . Weapon . | . . . . Parts Attached 26 | 6 15 . 5 Power 5 | 1 1 . 3 Engine 5 | 1 1 . 3 Core . | . . . . Reactor . | . . . . Propulsion 4 | 2 2 . . Treads 2 | 2 . . . Leg 2 | . 2 . . Wheel . | . . . . Hover . | . . . . Flight . | . . . . Utility 7 | 1 5 . 1 Device 2 | . 1 . 1 Storage 4 | 1 3 . . Processor 1 | . 1 . . Hackware . | . . . . Protection . | . . . . Artifact . | . . . . Weapon 10 | 2 7 . 1 Energy Gun 3 | 2 1 . . Energy Cannon . | . . . . Ballistic Gun 4 | . 4 . . Ballistic Cannon . | . . . . Launcher . | . . . . Special Weapon 2 | . 1 . 1 Impact Weapon . | . . . . Slashing Weapon . | . . . . Piercing Weapon . | . . . . Special Melee Weapon 1 | . 1 . . Unidentified Prototypes . | . . . . Parts Lost 5 | . 3 . 2 Power 1 | . 1 . . Propulsion 2 | . 1 . 1 Utility 2 | . 1 . 1 Weapon . | . . . . Highest Loss Streak 2 | . 1 . 2 To Critical Strikes . | . . . . Average Backups 9 | . 5 9 11 Power . | . . . . Propulsion . | . . . . Utility 4 | . 3 5 5 Weapon 3 | . 1 3 5 Tool/Special . | . . . . Unused Backups 15 | . . 1 14 Power . | . . . . Propulsion 1 | . . . 1 Utility 6 | . . . 6 Weapon 8 | . . 1 7 Tool/Special . | . . . . Average Slot Usage (%) 97 | . 89 100 99 Engine 13 | . 10 14 13 Treads 4 | . 22 . . Leg 23 | . 5 28 27 Device 9 | . 9 . 13 Storage 14 | . 14 14 14 Processor 4 | . . 14 . Energy Gun 3 | . 15 . . Ballistic Gun 19 | . 7 28 20 Special Weapon 4 | . 1 . 7 Peak Build Rating 15 | 6 12 13 15 Average Rating 11 | 4 7 12 13 On Entrance 7 | . 6 12 12 Avg Prop Armor Cover (%) . | . . . . Naked Turns . | . . . . Heaviest Build 32 | 11 31 31 32 Greatest Support 40 | 40 40 26 26 Greatest Overweight (x) 1 | . 1 1 1 Average Overweight (x) . | . . 1 . Largest Inventory Capacity 25 | 8 25 15 15 Average Capacity 14 | 7 11 15 15 Most Carried 15 | 5 11 10 15 Average Carried 10 | . 5 9 12 Final Capacity 15 | 8 15 15 15 Final Carried 15 | . 9 9 15 Class Distribution -------------------- 100% | Mutant Dominant Class ---------------- Mutant | -10/Materials Mutant | -10/Mines Mutant | -10/Subcaves Resources | -11 -10 -10 -10 ----------- Run | Yrd Mat Min Sub Matter Collected 1121 | 260 328 268 265 Remotely . | . . . . Salvage Created 920 | . 628 246 46 Parts 60 | . 36 17 7 Haulers Intercepted . | . . . . Recyclers Shooed . | . . . . Parts Field Recycled . | . . . . Retrieved Matter . | . . . . Parts Self-Destructed 1 | . . . 1 Prevented . | . . . . Parts Restored . | . . . . Kills | -11 -10 -10 -10 ------- Run | Yrd Mat Min Sub Combat Hostiles Destroyed 27 | . 15 11 1 Guns 24 | . 12 11 1 AOE 3 | . 3 . . Classes Destroyed 6 | . 5 . 1 Recycler 1 | . 1 . . Operator 2 | . 2 . . Watcher 2 | . 2 . . Swarmer 15 | . 6 9 . Grunt 11 | . 9 2 . Subdweller 1 | . . . 1 Best Kill Streak 5 | . 5 3 1 Combat Bots Only 5 | . 5 3 1 Max Kills in Single Turn 2 | . 2 2 1 Gunslinging . | . . . . Exploded 2 | . 2 . . Melee . | . . . . Uniques/NPCs Destroyed . | . . . . Combat | -11 -10 -10 -10 -------- Run | Yrd Mat Min Sub Hostile Shots Fired 156 | . 92 49 15 Missed 45 | . 25 17 3 Hits 111 | . 67 32 12 Projectile 111 | . 67 32 12 Damage Taken 1286 | . 727 296 263 Core 274 | . 149 72 53 Absorbed by Shields . | . . . . Core Remaining (%) 100 | 100 . . . Volleys Fired 114 | . 50 24 40 Largest 2 | . 2 2 2 Hottest 200 | . 80 46 200 Shots Fired 193 | . 87 48 58 Gun 163 | . 87 48 28 Cannon . | . . . . Launcher . | . . . . Special 30 | . . . 30 Kinetic 112 | . 36 48 28 Thermal 30 | . . . 30 Explosive . | . . . . Electromagnetic 51 | . 51 . . Robot Hit Streak 12 | . 8 10 12 Robot Miss Streak 5 | . 3 5 2 Penetration Max . | . . . . Secondary Targets 3 | . 2 1 . Max Gunslinging Chain 1 | . 1 1 . Shots Hit Robots 95 | . 52 26 17 Core Hits 41 | . 24 15 2 Critical Kills 1 | . . . 1 Critical Parts Destroyed 1 | . . . 1 Critical Strikes 3 | . 1 . 2 Destroy 2 | . . . 2 Corrupt 1 | . 1 . . Melee Attacks 1 | . 1 . . Impact . | . . . . Slashing . | . . . . Piercing . | . . . . Sneak Attacks 1 | . 1 . . Combat Hostiles . | . . . . Follow-up Attacks . | . . . . Damage Inflicted 1453 | . 916 420 117 Guns 1246 | . 743 410 93 Cannons . | . . . . Explosions 173 | . 173 . . Melee . | . . . . Ramming 10 | . . 10 . Kinetic 869 | . 366 410 93 Thermal 197 | . 173 . 24 Explosive . | . . . . Electromagnetic 377 | . 377 . . Impact . | . . . . Slashing . | . . . . Piercing . | . . . . Highest Corruption . | . . . . Average Corruption . | . . . . Corruption Purged . | . . . . Corruption Blocked . | . . . . Overload Shots . | . . . . Overflow Damage 13 | . 13 . . Projectiles . | . . . . Explosions 13 | . 13 . . Melee . | . . . . Knockbacks . | . . . . Impact . | . . . . Kinetic . | . . . . Secondary . | . . . . Self-Inflicted Damage 29 | . 29 . . Shots 1 | . 1 . . Rammed . | . . . . Targets Rammed 2 | . . 2 . Kicked 2 | . . 2 . Crushed . | . . . . Highest Temperature 72 | . 72 31 . Average Temperature 17 | . 20 9 . Received Heat Transfer 441 | . 324 45 72 Siege Activations . | . . . . Martial Activations . | . . . . Shielding Activations . | . . . . Robots Disrupted . | . . . . Combat Hostiles . | . . . . Robots Corrupted . | . . . . Combat Hostiles . | . . . . Parts Fried . | . . . . Impact Corruptions . | . . . . Robots Melted . | . . . . Combat Hostiles . | . . . . Parts Melted . | . . . . Heat Transferred 300 | . 250 . 50 Parts Sabotaged . | . . . . Parts Stolen . | . . . . Parts Stripped . | . . . . Power Chain Reactions 3 | . 3 . . Alert | -11 -10 -10 -10 ------- Run | Yrd Mat Min Sub Maximum Alert Level . | . . . . Low Security (%) 100 | 100 100 100 . Level 1 . | . . . . Level 2 . | . . . . Level 3 . | . . . . Level 4 . | . . . . Level 5 . | . . . . High Security . | . . . . Max Security . | . . . . Peak Influence 171 | . 171 127 . Initial 42 | . . 42 . Average 52 | . 77 35 . Influence Increases 743 | . 438 305 . Destroy 0b10 Robot/C 520 | . 300 220 . Destroy 0b10 Robot/NC 25 | . 25 . . Destroy Leader 104 | . 64 40 . Successful Hack 6 | . 6 . . Disable Machine 30 | . 15 15 . Destroy Structure 13 | . 13 . . Partial Spotted 15 | . 15 . . Lose Combat Pursuer 30 | . . 30 . Influence Decreases 743 | . 330 413 . Entered New Map 66 | . . 66 . Time Decay 647 | . 300 347 . Lost Part 30 | . 30 . . Squads Dispatched 3 | . 3 . . Investigation 1 | . 1 . . Extermination . | . . . . Reinforcement 2 | . 2 . . Assault . | . . . . Garrison . | . . . . Intercept . | . . . . Searches Triggered . | . . . . Construction Impeded . | . . . . Haulers Reinforced . | . . . . Active Scanning Responses . | . . . . Cargo Convoy Interrupts . | . . . . Stealth | -11 -10 -10 -10 --------- Run | Yrd Mat Min Sub Distress Signals 1 | . 1 . . Communications Jammed . | . . . . Distress Signals . | . . . . Times Spotted 39 | . 23 12 4 Peak Tracking Total 5 | . 5 3 2 Tactical Retreats 2 | . . 2 . Traps | -11 -10 -10 -10 ------- Run | Yrd Mat Min Sub Traps Triggered 1 | . 1 . . Indirectly . | . . . . Trap Hack Attempts . | . . . . Triggered . | . . . . Disarmed . | . . . . Reprogrammed . | . . . . Reused . | . . . . Traps Extracted . | . . . . Installed . | . . . . Triggered . | . . . . Most Traps Carried 1 | . . . 1 Machines | -11 -10 -10 -10 ---------- Run | Yrd Mat Min Sub Machines Disabled 4 | . 2 1 1 Max in Single Turn 1 | . 1 1 1 Machines Repaired . | . . . . Machines Dismantled . | . . . . Machines Sabotaged . | . . . . Overloaded Fab Kills . | . . . . Hacking | -11 -10 -10 -10 --------- Run | Yrd Mat Min Sub Machines Accessed 5 | . 4 . 1 Terminals 2 | . 2 . . Fabricators . | . . . . Repair Stations . | . . . . Recycling Units 2 | . 2 . . Scanalyzers . | . . . . Garrison Access . | . . . . Total Hacks 20 | . 11 . 9 Successful 16 | . 7 . 9 Failed 4 | . 4 . . Catastrophic . | . . . . Database Lockouts . | . . . . Manual . | . . . . Terminals 5 | . 5 . . Fabricators . | . . . . Repair Stations . | . . . . Recycling Units 6 | . 6 . . Scanalyzers . | . . . . Garrison Access . | . . . . Terminal Hacks 13 | . 4 . 9 Record 9 | . 1 . 8 Emergency Access Points 1 | . 1 . . Recycling Unit Index 1 | . 1 . . Zone Layout 1 | . 1 . . Proto ID Catalog 1 | . . . 1 Fabricator Hacks . | . . . . Repair Station Hacks . | . . . . Recycling Unit Hacks 3 | . 3 . . Report Inventory 2 | . 2 . . Retrieve Components 1 | . 1 . . Scanalyzer . | . . . . Garrison Access Hacks . | . . . . Unauthorized Hacks . | . . . . Terminals . | . . . . Fabricators . | . . . . Repair Stations . | . . . . Recycling Units . | . . . . Scanalyzers . | . . . . Garrison Access . | . . . . Data Cores Recovered . | . . . . Used . | . . . . Hacking Detections 2 | . 2 . . Full Trace Events 1 | . 1 . . Feedback Events . | . . . . Feedback Blocked . | . . . . Robot Schematics Acquired . | . . . . Robots Built . | . . . . Authchips . | . . . . Time . | . . . . Total Robot Build Rating . | . . . . Part Schematics Acquired . | . . . . Parts Built . | . . . . Authchips . | . . . . Time . | . . . . Total Part Build Rating . | . . . . Part Studies Acquired . | . . . . Parts Repaired . | . . . . Time . | . . . . Parts Recycled . | . . . . Recycled Matter . | . . . . Retrieved Matter . | . . . . Retrieved Components 2 | . 2 . . Parts Scanalyzed . | . . . . Part Schematics Acquired . | . . . . Parts Damaged . | . . . . Bothacking | -11 -10 -10 -10 ------------ Run | Yrd Mat Min Sub Used RIF Installer . | . . . . Robots Hacked . | . . . . Non-combat . | . . . . Combat . | . . . . Robot Hacks Applied . | . . . . Relay Couplers Released . | . . . . Fabnet Peak Effective % . | . . . . Robots Rewired . | . . . . Allies Hacked . | . . . . Hacks Repelled . | . . . . Allies | -11 -10 -10 -10 -------- Run | Yrd Mat Min Sub Total Allies . | . . . . Largest Group . | . . . . Highest-Rated Group . | . . . . Highest-Rated Ally . | . . . . Total Orders . | . . . . Ally Attacks . | . . . . Total Damage . | . . . . Kills . | . . . . Allies Corrupted . | . . . . Allies Melted . | . . . . Intel | -11 -10 -10 -10 ------- Run | Yrd Mat Min Sub Active Infowar (turns) 4258 | . 627 1106 2525 Optics 1295 | . 48 1106 141 Sensors 2963 | . 579 . 2384 Robot Analysis Total . | . . . . Derelict Logs Recovered 4 | . . 1 3 Drone Launches . | . . . . Drone Recoveries . | . . . . Exploration | -11 -10 -10 -10 ------------- Run | Yrd Mat Min Sub Turns Passed 4601 | 76 892 1106 2527 Spaces Moved 2090 | 55 424 541 1070 Core 21 | 21 . . . Treads 371 | 34 337 . . Legs 1698 | . 87 541 1070 Wheels . | . . . . Hover . | . . . . Flight . | . . . . Fastest Speed 50 | 50 120 190 120 Average Speed 181 | 118 165 190 187 Slowest Speed 240 | 160 240 190 190 Overloaded Moves . | . . . . Propulsion Burnouts . | . . . . Robots Hopped . | . . . . Potential Cave-ins . | . . . . Cave-ins Triggered . | . . . . Exploration Rate (%) 53 | 4 72 93 46 Regions Visited 3 Branch Regions 2 Pre-discovered Areas 3 | . . . 3 Known Exits Taken . | . . . . Unknown Exits Taken 3 | 1 1 1 . Scrap Searched 8 | . . 1 7 Spaces Dug . | . . . . Terrain Destroyed 12 | . 12 . . Melee . | . . . . Projectile . | . . . . AOE 12 | . 12 . . Terrain Rammed . | . . . . Walls Destroyed . | . . . . Machines Disabled . | . . . . Actions | -11 -10 -10 -10 --------- Run | Yrd Mat Min Sub Total 2662 | 66 534 580 1482 Wait 356 | . 8 12 336 Move 2087 | 54 423 540 1070 Hop . | . . . . Pick Up 45 | 6 21 1 17 Fast Attach . | . . . . Attach 19 | 6 11 . 2 Detach 3 | . 3 . . Swap 16 | . 9 . 7 Drop 19 | . 8 1 10 Fire 114 | . 50 24 40 Melee 1 | . 1 . . Ram . | . . . . Kick 2 | . . 2 . Crush . | . . . . Escape Stasis . | . . . . Rewire . | . . . . Trap . | . . . . Miscellaneous . | . . . . Route ------- -11/Scrapyard -10/Materials (discovered 4 exits: [*Mat x3] / [*Min]) -10/Mines (discovered 3 exits: [*Mat x2] / *Sub) -10/Subcaves (discovered 2 exits: [*Mat] / [*Scr]) History --------- Turn | Location | Event 34 | -11/Scrapyard | Discovered new exit (range 14) 77 | -11/Scrapyard | Entered Materials 269 | -10/Materials | Discovered new exit (range 14) 316 | -10/Materials | Build established: Mutant 465 | -10/Materials | Discovered new exit (range 15) 712 | -10/Materials | Discovered new exit (range 8) 747 | -10/Materials | Core integrity fell below 50% 936 | -10/Materials | Discovered new exit (range 11) 969 | -10/Materials | Entered Mines 1130 | -10/Mines | Discovered new exit (range 12) 1401 | -10/Mines | Discovered new exit (range 8) 1567 | -10/Mines | Learned location of 1 exit from Materials 1587 | -10/Mines | Core integrity fell below 20% 2045 | -10/Mines | Discovered new exit (range 9) 2075 | -10/Mines | Entered Subcaves 2076 | -10/Subcaves | Approached by a straggling Scientist 2104 | -10/Subcaves | Learned location of 1 exit from Materials 2245 | -10/Subcaves | Scientist uncovered a shortcut to Scraptown 2634 | -10/Subcaves | Curiously followed by a Cobbler waking with a query about "LVR3C" 2977 | -10/Subcaves | Discovered new exit (range 4) 2995 | -10/Subcaves | Shifting Twisted Machinery released Spk. Treads 3006 | -10/Subcaves | Shifting Twisted Machinery released Battle Cannon 3136 | -10/Subcaves | Learned location of Zion (-7) 3170 | -10/Subcaves | Visited 4L-MR0's lab 3294 | -10/Subcaves | Found Gun Armor 3419 | -10/Subcaves | Met a Zionite searching for "candidates" 3522 | -10/Subcaves | Disturbed a concealed Subdweller 4602 | -10/Subcaves | Destroyed by TG-3FA(R) with Subdweller Beam Cannon Last Messages --------------- 52-LTF(O) collects matter. 9E-EJ7(u) tweaks Twisted Machinery. 52-LTF(O) puts together Battle Cannon. Searching scrap... Found Sub. Power Source. Found 67 Matter. Acquired 14 matter. Dropped Spk. Treads. Acquired Sub. Power Source. Dropped Broken Sub. Power Source. Subatomizers dissect the Broken Sub. Power Source. Acquired Spk. Treads. 1L-SOL(u) tweaks Twisted Machinery. 52-LTF(O) puts together Mak. System Shield. Dropped Mining Laser. Acquired Mak. System Shield. 1L-SOL(u) tweaks Twisted Machinery. Imp. Aluminum Leg destroyed. Sensor Array destroyed. Map ----- +----------------------------------------------------+ | ???????????????# #????????????????? | | ???????????????# #????????????????? | | ??????????????## ######?????????#### | | ??????????????# ##### #???????### | | ??????????????# #?## #???##### | | ??????????????## ### ##### # | | ??????????????# ## ## #### | | ??????????????## ##??? | | ???????????????# ### ## #####? | | ???????????????## ##?# #### ## ## | | ????????????????## ##?## #??# # | | ?????????????????## #??# #??# | | ??????????????????# #### ##??## | | ????????????????### ## #??### | | ????????????????# ## #?## | | ???????????????## ### ## | | ???????????????# ## ##### | | ???????????????# ##???? | | ???????????????# ##????? | | ??????????????## #######?????? | | ?????????##??## #???????????? | | ?????????" ##< ###?????????? | | ??????????# #### ##????????? | | ??????????##"#R #### #????????? | | ???????????### O ##???????? | | ????????????# @ R ##??????? | | ????????????#### ## #??????? | | ???????????????# ### #??????? | | ???????????????# ##?# #??????? | | ???????????????# ##? ##??????? | | ??????????????# #?## #???????? | | ??????????????# #??## ???????? | | ??????????????# #??# ???????? | | ??????????????# #?## ??????? | | ??????????????## #??# ??????? | | ???????????????## #??# ??????? | | ????????????????#### ???# ?????? | | ???????????????????## ??? #?????? | | ????????????????????# ???# #?????? | | ????????????????????## ??????##?????? | | ??????????????????????##??????????????? | | ??????????????????????????????????????? | | ??????????????????????????????????????? | | ??????????????????????????????????????? | | ??????????????????????????????????????? | | ??????????????????????????????????????? | | ??????????????????????????????????????? | | ??????????????????????????????????????? | | ??????????????????????????????????????? | | ??????????????????????????????????????? | +----------------------------------------------------+ Best States ------------- Heat Dissipation 25 Energy Generation 15 Energy Capacity 250 Matter Stores 300 Matter Capacity 300 Sight Range 18 Robot Scan Range 14 Terrain Scan Density 10 Evasion (%) 55 Recoil Reduction 2 Item Schematics ----------------- None Robot Schematics ------------------ None Fabricated ------------ Nothing Repaired ---------- Nothing Studied --------- None Alien Tech Used ----------------- None Achievements -------------- Mistaken Identity Nice Directions, Buddy Challenges ------------ None Game ------ Seed ZeronetProjectileScanner Manual? 0 Play Time 00:31:45 Cumulative 1.8 hours Start 2026.02.04 @ 22:54:32 End 2026.02.04 @ 23:25:06 Sessions 1 Manual Loads 0 Difficulty Rogue Special Mode None Game No. 6 Rogue 6 Adventurer 0 Explorer 0 Win Type - Total 0 Types 0/0/0/0/0/0/0/0/0/0 Lore% 1 Gallery% 4 Achievement% 6 Wizard Run 0 Options --------- Layout 1 ASCII 0 Keyboard 0 Movement Mouse Keybinds 0 Fullscreen 2 Font 32/SmallcapsGlow Map View 50x35 Zoom Use 0% Tactical HUD 0 Map Filters NONE Filters NONE Steam 1 RUN: a47d7627-b754-4d55-8634-ce23d020e37b